fUSD/lending_fUSD_20260320
["ID","MTS","AMOUNT","RATE_DAILY","PERIOD"]
[408641533,1774036283045,-500.0,0.00032328,120]
[408641534,1774036283055,-500.0,0.00032328,2]
[408641535,1774036283066,-500.0,0.00032328,2]
[408641536,1774036283077,-915.83,0.00032328,120]
[408641537,1774036283087,-2459.36,0.00032328,2]
[408641538,1774036283097,-752.86,0.00032328,2]
[408641539,1774036283106,-500.0,0.00032328,120]
[408641540,1774036283115,-561.21448525,0.00032328,120]
[408641541,1774036283125,-500.0,0.00032328,120]
[408641542,1774036283134,-816.89,0.00032328,120]
[408641543,1774036283145,-500.0,0.00032328,120]
[408641544,1774036283155,-3098.0,0.00032328,120]
[408641545,1774036283167,-1052.59,0.00032328,120]
[408641546,1774036283176,-4592.52,0.00032328,120]
[408641547,1774036283186,-587.08,0.00032328,120]
[408641548,1774036283195,-3548.68,0.00032328,120]
[408641549,1774036283205,-500.0,0.00032328,120]
[408641550,1774036283214,-1044.81,0.00032328,14]
[408641551,1774036283226,-500.0,0.00032328,7]
[408641552,1774036283237,-500.0,0.00032328,120]
[408641553,1774036283247,-500.0,0.00032328,14]
[408641554,1774036283257,-926.21,0.00032328,120]
[408641555,1774036283267,-732.11,0.00032328,120]
[408641556,1774036283277,-824.15,0.00032328,120]
[408641557,1774036283287,-716.03,0.00032328,120]
[408641558,1774036283296,-500.0,0.00032328,120]
[408641559,1774036283306,-729.27,0.00032328,120]
[408641560,1774036283316,-500.0,0.00032328,2]
[408641561,1774036283326,-500.0,0.00032328,120]
[408641562,1774036283335,-919.19,0.00032328,60]
[408641563,1774036283344,-5739.37,0.00032328,7]
[408641564,1774036283355,-500.0,0.00032328,120]
[408641565,1774036283365,-300.0,0.00032328,2]
[408641566,1774036283375,-500.0,0.00032328,30]
[408641567,1774036283385,-1366.47,0.00032328,14]
[408641568,1774036283396,-685.6,0.00032328,14]
[408641569,1774036283406,-300.0,0.00032328,2]
[408641570,1774036283416,-875.21,0.00032328,2]
[408641571,1774036283426,-536.33,0.00032328,120]
[408641572,1774036283435,-966.16,0.00032328,120]
[408641573,1774036283445,-500.0,0.00032328,120]
[408641574,1774036283455,-1260.41,0.00032328,2]
[408641575,1774036283464,-500.0,0.00032328,120]
[408641576,1774036283473,-1443.59,0.00032328,7]
[408641577,1774036283482,-500.0,0.00032328,120]
[408641578,1774036283493,-500.0,0.00032328,5]
[408641579,1774036283503,-2059.09,0.00032328,120]
[408641580,1774036283513,-1117.66,0.00032328,120]
[408641581,1774036283526,-8442.63,0.00032328,60]
[408641582,1774036283535,-3352.31,0.00032328,120]
[408641583,1774036283545,-547.44,0.00032328,30]
[408641584,1774036283555,-2137.61,0.00032328,120]
[408641585,1774036283564,-2648.26,0.00032328,120]
[408641586,1774036283575,-15731.63,0.00032328,120]
[408641587,1774036283585,-500.0,0.00032328,2]
[408641588,1774036283594,-1772.79,0.00032328,120]
[408641589,1774036283604,-2157.0,0.00032328,2]
[408641590,1774036283614,-575.18,0.00032328,120]
[408641591,1774036283624,-1441.92,0.00032328,120]
[408641592,1774036283633,-620.5,0.00032328,2]
[408641593,1774036283644,-810.21,0.00032328,2]
[408641594,1774036283654,-1141.42,0.00032328,7]
[408641595,1774036283664,-3708.46,0.00032328,2]
[408641596,1774036283674,-273.19,0.00032433,120]
[408641597,1774036283683,-5005.0,0.00032463,7]
[408641598,1774036283693,-1001.38,0.000325,120]
[408641599,1774036283702,-152.6076639,0.00032548,120]
[408641600,1774036283713,-959.05495093,0.00032601,60]
[408641601,1774036283724,-959.05495092,0.00032601,60]
[408641602,1774036283734,-500.0,0.00032602,120]
[408641603,1774036283743,-852.59,0.00032602,120]
[408641604,1774036283754,-500.0,0.00032602,120]
[408641605,1774036283765,-500.0,0.00032602,2]
[408641606,1774036283775,-500.0,0.00032602,2]
[408641607,1774036283785,-915.83,0.00032602,120]
[408641608,1774036283794,-2459.36,0.00032602,2]
[408641609,1774036283805,-752.86,0.00032602,2]
[408641610,1774036283815,-500.0,0.00032602,120]
[408641611,1774036283824,-500.0,0.00032602,120]
[408641612,1774036283834,-816.89,0.00032602,120]
[408641613,1774036283844,-500.0,0.00032602,120]
[408641614,1774036283854,-3098.0,0.00032602,120]
[408641615,1774036283864,-1052.59,0.00032602,120]
[408641616,1774036283874,-4592.52,0.00032602,120]
[408641617,1774036283887,-587.08,0.00032602,120]
[408641618,1774036283902,-3548.68,0.00032602,120]
[408641619,1774036283912,-314.795216,0.00032602,120]
[408641620,1774036283922,-1044.81,0.00032602,14]
[408641621,1774036283933,-500.0,0.00032602,7]
[408641622,1774036283941,-500.0,0.00032602,120]
[408641623,1774036283948,-292.57498403,0.00032602,14]
[408641624,1774036283955,-926.21,0.00032602,120]
[408641625,1774036283963,-732.11,0.00032602,120]
[408641626,1774036283971,-824.15,0.00032602,120]
[408641627,1774036283981,-716.03,0.00032602,120]
[408641628,1774036283991,-500.0,0.00032602,120]
[408641629,1774036284001,-729.27,0.00032602,120]
[408641630,1774036284011,-500.0,0.00032602,2]
[408641631,1774036284020,-500.0,0.00032602,120]
[408641632,1774036284030,-919.19,0.00032602,60]
[408641633,1774036284039,-5739.37,0.00032602,7]
[408641634,1774036284048,-500.0,0.00032602,120]
[408641635,1774036284059,-300.0,0.00032602,2]
[408641636,1774036284068,-500.0,0.00032602,30]
[408641637,1774036284077,-1366.47,0.00032602,14]
[408641638,1774036284087,-685.6,0.00032602,14]
[408641639,1774036284096,-300.0,0.00032602,2]
[408641640,1774036284105,-875.21,0.00032602,2]
[408641641,1774036284115,-536.33,0.00032602,120]
[408641642,1774036284124,-966.16,0.00032602,120]
[408641643,1774036284134,-488.12242993,0.00032602,120]
[408641644,1774036284148,-1260.41,0.00032602,2]
[408641645,1774036284157,-617.75211641,0.00032602,120]
[408641646,1774036284167,-1443.59,0.00032602,7]
[408641647,1774036284176,-500.0,0.00032602,120]
[408641648,1774036284186,-500.0,0.00032602,5]
[408641649,1774036284196,-2059.09,0.00032602,120]
[408641650,1774036284206,-1117.66,0.00032602,120]
[408641651,1774036284215,-8442.63,0.00032602,60]
[408641652,1774036284225,-3352.31,0.00032602,120]
[408641653,1774036284234,-547.44,0.00032602,30]
[408641654,1774036284243,-2137.61,0.00032602,120]
[408641655,1774036284253,-2648.26,0.00032602,120]
[408641656,1774036284263,-15731.63,0.00032602,120]
[408641657,1774036284272,-500.0,0.00032602,2]
[408641658,1774036284282,-1772.79,0.00032602,120]
[408641659,1774036284291,-2157.0,0.00032602,2]
[408641660,1774036284301,-575.18,0.00032602,120]
[408641661,1774036284310,-1441.92,0.00032602,120]
[408641662,1774036284320,-620.5,0.00032602,2]
[408641663,1774036284330,-810.21,0.00032602,2]
[408641664,1774036284339,-1141.42,0.00032602,7]
[408641665,1774036284349,-3708.46,0.00032602,2]
[408641666,1774036284358,-232.0,0.00032606,30]
[408641667,1774036284367,-273.19,0.00032707,120]
[408641668,1774036284377,-1001.38,0.00032708,120]
[408641669,1774036284386,-162.58,0.000328,14]
[408641670,1774036284396,-4867.53975238,0.000328,2]
[408641671,1774036284406,-9136.4783,0.000328,2]
[408641672,1774036284415,-800.0,0.00032826,2]
[408641673,1774036284424,-800.0,0.00032826,2]
[408641674,1774036284434,-700.0,0.00032826,2]
[408641675,1774036284443,-959.05495093,0.00032875,60]
[408641676,1774036284453,-959.05495092,0.00032875,60]
[408641677,1774036284462,-400.99753203,0.00032876,2]
[408641678,1774036284471,-500.0,0.00032876,120]
[408641679,1774036284481,-500.0,0.00032876,90]
[408641680,1774036284491,-500.0,0.00032876,90]
[408641681,1774036284501,-500.0,0.00032876,90]
[408641682,1774036284511,-258.85100103,0.00032876,90]
[408641683,1774036284523,-852.59,0.00032876,120]
[408641684,1774036284532,-500.0,0.00032876,120]
[408641685,1774036284541,-500.0,0.00032876,2]
[408641686,1774036284551,-500.0,0.00032876,2]
[408641687,1774036284562,-915.83,0.00032876,120]
[408641688,1774036284571,-2459.36,0.00032876,2]
[408641689,1774036284581,-752.86,0.00032876,2]
[408641690,1774036284591,-500.0,0.00032876,120]
[408641691,1774036284600,-500.0,0.00032876,120]
[408641692,1774036284610,-816.89,0.00032876,120]
[408641693,1774036284620,-500.0,0.00032876,120]
[408641694,1774036284631,-3098.0,0.00032876,120]
[408641695,1774036284640,-1052.59,0.00032876,120]
[408641696,1774036284649,-4592.52,0.00032876,120]
[408641697,1774036284659,-587.08,0.00032876,120]
[408641698,1774036284669,-3548.68,0.00032876,120]
[408641699,1774036284678,-1044.81,0.00032876,14]
[408641700,1774036284688,-262.07152091,0.00032876,7]
[408641701,1774036284697,-625.67961918,0.00032876,120]
[408641702,1774036284708,-926.21,0.00032876,120]
[408641703,1774036284718,-732.11,0.00032876,120]
[408641704,1774036284728,-824.15,0.00032876,120]
[408641705,1774036284737,-716.03,0.00032876,120]
[408641706,1774036284746,-500.0,0.00032876,120]
[408641707,1774036284756,-729.27,0.00032876,120]
[408641708,1774036284766,-500.0,0.00032876,2]
[408641709,1774036284776,-500.0,0.00032876,120]
[408641710,1774036284787,-919.19,0.00032876,60]
[408641711,1774036284797,-5739.37,0.00032876,7]
[408641712,1774036284807,-500.0,0.00032876,120]
[408641713,1774036284816,-300.0,0.00032876,2]
[408641714,1774036284826,-499.27877668,0.00032876,30]
[408641715,1774036284836,-1366.47,0.00032876,14]
[408641716,1774036284846,-685.6,0.00032876,14]
[408641717,1774036284856,-300.0,0.00032876,2]
[408641718,1774036284865,-875.21,0.00032876,2]
[408641719,1774036284875,-536.33,0.00032876,120]
[408641720,1774036284885,-966.16,0.00032876,120]
[408641721,1774036284895,-1260.41,0.00032876,2]
[408641722,1774036284906,-378.25357256,0.00032876,2]
[408641723,1774036284915,-500.0,0.00032876,2]
[408641724,1774036284925,-500.0,0.00032876,2]
[408641725,1774036284935,-500.0,0.00032876,2]
[408641726,1774036284944,-500.0,0.00032876,2]
[408641727,1774036284954,-500.0,0.00032876,2]
[408641728,1774036284963,-500.0,0.00032876,2]
[408641729,1774036284972,-500.0,0.00032876,2]
[408641730,1774036284982,-508.15990349,0.00032876,2]
[408641731,1774036284991,-500.0,0.00032876,2]
[408641732,1774036285001,-500.0,0.00032876,2]
[408641733,1774036285010,-500.0,0.00032876,2]
[408641734,1774036285020,-500.0,0.00032876,2]
[408641735,1774036285029,-500.0,0.00032876,2]
[408641736,1774036285038,-165.33743043,0.00032876,2]
[408641737,1774036285047,-604.71661217,0.00032876,2]
[408641738,1774036285056,-1443.59,0.00032876,7]
[408641739,1774036285066,-500.0,0.00032876,120]
[408641740,1774036285075,-500.0,0.00032876,5]
[408641741,1774036285084,-500.0,0.00032876,2]
[408641742,1774036285094,-500.0,0.00032876,2]
[408641743,1774036285244,-500.0,0.00032876,2]
[408641744,1774036285255,-438.66461545,0.00032876,2]
[408641745,1774036285266,-500.0,0.00032876,2]
[408641746,1774036285276,-500.0,0.00032876,2]
[408641747,1774036285286,-470.20968117,0.00032876,2]
[408641748,1774036285295,-2059.09,0.00032876,120]
[408641749,1774036285305,-1117.66,0.00032876,120]
[408641750,1774036285315,-8442.63,0.00032876,60]
[408641751,1774036285324,-3352.31,0.00032876,120]
[408641752,1774036285334,-547.44,0.00032876,30]
[408641753,1774036285343,-2137.61,0.00032876,120]
[408641754,1774036285353,-2648.26,0.00032876,120]
[408641755,1774036285362,-726.49845376,0.00032876,2]
[408641756,1774036285373,-726.49845376,0.00032876,2]
[408641757,1774036285382,-726.49845376,0.00032876,2]
[408641758,1774036285392,-726.49845376,0.00032876,2]
[408641759,1774036285402,-726.49845376,0.00032876,2]
[408641760,1774036285411,-726.49845376,0.00032876,2]
[408641761,1774036285421,-750.7150689,0.00032876,2]
[408641762,1774036285431,-750.7150689,0.00032876,2]
[408641763,1774036285441,-750.7150689,0.00032876,2]
[408641764,1774036285451,-15731.63,0.00032876,120]
[408641765,1774036285460,-500.0,0.00032876,2]
[408641766,1774036285470,-1772.79,0.00032876,120]
[408641767,1774036285479,-2157.0,0.00032876,2]
[408641768,1774036285489,-575.18,0.00032876,120]
[408641769,1774036285499,-1441.92,0.00032876,120]
[408641770,1774036285510,-620.5,0.00032876,2]
[408641771,1774036285521,-810.21,0.00032876,2]
[408641772,1774036285531,-1141.42,0.00032876,7]
[408641773,1774036285540,-3708.46,0.00032876,2]
[408641774,1774036285550,-1000.0,0.00032877,15]
[408641775,1774036285559,-942.0,0.00032877,15]
[408641776,1774036285568,-347.39,0.00032877,2]
[408641777,1774036285578,-873.55,0.00032877,2]
[408641778,1774036285588,-160.50250907,0.00032877,2]
[408641779,1774036285598,-300.0,0.00032877,5]
[408641780,1774036285608,-500.0,0.00032877,2]
[408641781,1774036285618,-500.0,0.00032877,2]
[408641782,1774036285627,-500.0,0.00032877,2]
[408641783,1774036285637,-500.0,0.00032877,2]
[408641784,1774036285650,-500.0,0.00032877,2]
[408641785,1774036285659,-500.0,0.00032877,2]
[408641786,1774036285669,-386.24860298,0.00032877,2]
[408641787,1774036285679,-150.0,0.00032877,2]
[408641788,1774036285688,-150.0,0.00032877,2]
[408641789,1774036285697,-150.0,0.00032877,2]
[408641790,1774036285707,-150.0,0.00032877,2]
[408641791,1774036285717,-177.37121375,0.00032877,2]
[408641792,1774036285726,-979.16666667,0.000329,120]
[408641793,1774036285735,-1001.38,0.00032917,120]
[408641794,1774036285745,-273.19,0.00032981,120]
[408641795,1774036285755,-40032.90774597,0.00033,2]
[408641796,1774036285765,-10000.0,0.00033,120]
[408641797,1774036285774,-169.83023468,0.00033,30]
[408641798,1774036285784,-37540.3410253,0.00033,7]
[408641799,1774036285794,-191.15618403,0.00033,120]
[408641800,1774036285803,-3296.98184163,0.00033,120]
[408641801,1774036285813,-51695.50534987,0.00033,2]
[408641802,1774036285823,-26582.90908931,0.00033,2]
[408641803,1774036285832,-564.768822,0.00033,14]
[408641804,1774036285842,-700.0,0.00033,2]
[408641805,1774036285851,-5946.68,0.00033,2]
[408641806,1774036285861,-150.0,0.00033043,2]
[408641807,1774036285871,-1001.38,0.00033125,120]
[408641808,1774036285880,-1634.21,0.00033138,2]
[408641809,1774036285890,-959.05495093,0.00033149,60]
[408641810,1774036285900,-959.05495092,0.00033149,60]
[408641811,1774036285910,-353.98123337,0.0003315,120]
[408641812,1774036285921,-852.59,0.0003315,120]
[408641813,1774036285931,-500.0,0.0003315,120]
[408641814,1774036285941,-500.0,0.0003315,2]
[408641815,1774036285951,-500.0,0.0003315,2]
[408641816,1774036285961,-915.83,0.0003315,120]
[408641817,1774036285970,-2459.36,0.0003315,2]
[408641818,1774036285980,-752.86,0.0003315,2]
[408641819,1774036285990,-500.0,0.0003315,120]
[408641820,1774036285999,-500.0,0.0003315,120]
[408641821,1774036286009,-816.89,0.0003315,120]
[408641822,1774036286019,-500.0,0.0003315,120]
[408641823,1774036286029,-3098.0,0.0003315,120]
[408641824,1774036286038,-1052.59,0.0003315,120]
[408641825,1774036286048,-4592.52,0.0003315,120]
[408641826,1774036286058,-587.08,0.0003315,120]
[408641827,1774036286068,-3548.68,0.0003315,120]
[408641828,1774036286078,-1044.81,0.0003315,14]
[408641829,1774036286089,-926.21,0.0003315,120]
[408641830,1774036286099,-732.11,0.0003315,120]
[408641831,1774036286108,-824.15,0.0003315,120]
[408641832,1774036286118,-716.03,0.0003315,120]
[408641833,1774036286128,-500.0,0.0003315,120]
[408641834,1774036286138,-729.27,0.0003315,120]
[408641835,1774036286148,-500.0,0.0003315,2]
[408641836,1774036286158,-500.0,0.0003315,120]
[408641837,1774036286167,-919.19,0.0003315,60]
[408641838,1774036286177,-5739.37,0.0003315,7]
[408641839,1774036286187,-500.0,0.0003315,120]
[408641840,1774036286196,-300.0,0.0003315,2]
[408641841,1774036286206,-1366.47,0.0003315,14]
[408641842,1774036286217,-685.6,0.0003315,14]
[408641843,1774036286227,-300.0,0.0003315,2]
[408641844,1774036286237,-875.21,0.0003315,2]
[408641845,1774036286246,-536.33,0.0003315,120]
[408641846,1774036286256,-966.16,0.0003315,120]
[408641847,1774036286265,-1260.41,0.0003315,2]
[408641848,1774036286275,-1443.59,0.0003315,7]
[408641849,1774036286285,-334.72828663,0.0003315,120]
[408641850,1774036286295,-500.0,0.0003315,5]
[408641851,1774036286305,-2059.09,0.0003315,120]
[408641852,1774036286315,-1117.66,0.0003315,120]
[408641853,1774036286325,-8442.63,0.0003315,60]
[408641854,1774036286335,-3352.31,0.0003315,120]
[408641855,1774036286345,-547.44,0.0003315,30]
[408641856,1774036286355,-2137.61,0.0003315,120]
[408641857,1774036286365,-2648.26,0.0003315,120]
[408641858,1774036286376,-15731.63,0.0003315,120]
[408641859,1774036286387,-500.0,0.0003315,2]
[408641860,1774036286398,-1772.79,0.0003315,120]
[408641861,1774036286407,-2157.0,0.0003315,2]
[408641862,1774036286417,-575.18,0.0003315,120]
[408641863,1774036286427,-1441.92,0.0003315,120]
[408641864,1774036286438,-620.5,0.0003315,2]
[408641865,1774036286447,-810.21,0.0003315,2]
[408641866,1774036286457,-1141.42,0.0003315,7]
[408641867,1774036286467,-3708.46,0.0003315,2]
[408641868,1774036286476,-486.51,0.00033165,2]
[408641869,1774036286485,-273.19,0.00033255,120]
[408641870,1774036286495,-1001.38,0.00033333,120]
[408641871,1774036286505,-959.05495093,0.00033423,60]
[408641872,1774036286520,-959.05495092,0.00033423,60]
[408641873,1774036286530,-852.59,0.00033424,120]
[408641874,1774036286539,-500.0,0.00033424,120]
[408641875,1774036286549,-500.0,0.00033424,2]
[408641876,1774036286559,-500.0,0.00033424,2]
[408641877,1774036286569,-915.83,0.00033424,120]
[408641878,1774036286578,-2459.36,0.00033424,2]
[408641879,1774036286588,-752.86,0.00033424,2]
[408641880,1774036286597,-500.0,0.00033424,120]
[408641881,1774036286608,-329.57276796,0.00033424,120]
[408641882,1774036286617,-816.89,0.00033424,120]
[408641883,1774036286627,-500.0,0.00033424,120]
[408641884,1774036286637,-3098.0,0.00033424,120]
[408641885,1774036286647,-1052.59,0.00033424,120]
[408641886,1774036286657,-4592.52,0.00033424,120]
[408641887,1774036286667,-587.08,0.00033424,120]
[408641888,1774036286677,-3548.68,0.00033424,120]
[408641889,1774036286686,-1044.81,0.00033424,14]
[408641890,1774036286695,-926.21,0.00033424,120]
[408641891,1774036286705,-732.11,0.00033424,120]
[408641892,1774036286715,-824.15,0.00033424,120]
[408641893,1774036286725,-716.03,0.00033424,120]
[408641894,1774036286735,-500.0,0.00033424,120]
[408641895,1774036286744,-729.27,0.00033424,120]
[408641896,1774036286754,-500.0,0.00033424,2]
[408641897,1774036286763,-500.0,0.00033424,120]
[408641898,1774036286773,-919.19,0.00033424,60]
[408641899,1774036286782,-5739.37,0.00033424,7]
[408641900,1774036286791,-500.0,0.00033424,120]
[408641901,1774036286801,-300.0,0.00033424,2]
[408641902,1774036286810,-1366.47,0.00033424,14]
[408641903,1774036286820,-685.6,0.00033424,14]
[408641904,1774036286830,-300.0,0.00033424,2]
[408641905,1774036286840,-875.21,0.00033424,2]
[408641906,1774036286849,-536.33,0.00033424,120]
[408641907,1774036286859,-966.16,0.00033424,120]
[408641908,1774036286868,-1260.41,0.00033424,2]
[408641909,1774036286878,-1443.59,0.00033424,7]
[408641910,1774036286887,-500.0,0.00033424,5]
[408641911,1774036286899,-2059.09,0.00033424,120]
[408641912,1774036286909,-1117.66,0.00033424,120]
[408641913,1774036286918,-8442.63,0.00033424,60]
[408641914,1774036286928,-3352.31,0.00033424,120]
[408641915,1774036286938,-547.44,0.00033424,30]
[408641916,1774036286947,-2137.61,0.00033424,120]
[408641917,1774036286956,-2648.26,0.00033424,120]
[408641918,1774036286965,-15731.63,0.00033424,120]
[408641919,1774036286975,-500.0,0.00033424,2]
[408641920,1774036286984,-1772.79,0.00033424,120]
[408641921,1774036286993,-2157.0,0.00033424,2]
[408641922,1774036287003,-575.18,0.00033424,120]
[408641923,1774036287013,-1441.92,0.00033424,120]
[408641924,1774036287023,-620.5,0.00033424,2]
[408641925,1774036287032,-810.21,0.00033424,2]
[408641926,1774036287042,-1141.42,0.00033424,7]
[408641927,1774036287052,-3708.46,0.00033424,2]
[408641928,1774036287062,-800.0,0.0003349,2]
[408641929,1774036287072,-800.0,0.0003349,2]
[408641930,1774036287082,-785.0,0.0003349,2]
[408641931,1774036287091,-3000.0,0.00033498,15]
[408641932,1774036287101,-1221.21546449,0.000335,2]
[408641933,1774036287111,-273.19,0.00033529,120]
[408641934,1774036287123,-1001.38,0.00033542,120]
[408641935,1774036287132,-232.0,0.00033606,30]
[408641936,1774036287142,-800.0,0.00033658,120]
[408641937,1774036287152,-19412.90295872,0.0003366,53]
[408641938,1774036287162,-3172.94,0.00033687,7]
[408641939,1774036287171,-959.05495093,0.00033697,60]
[408641940,1774036287180,-959.05495092,0.00033697,60]
[408641941,1774036287190,-852.59,0.00033698,120]
[408641942,1774036287200,-450.09851553,0.00033698,120]
[408641943,1774036287210,-599.65072662,0.00033698,2]
[408641944,1774036287219,-500.0,0.00033698,2]
[408641945,1774036287229,-915.83,0.00033698,120]
[408641946,1774036287239,-2459.36,0.00033698,2]
[408641947,1774036287249,-752.86,0.00033698,2]
[408641948,1774036287259,-500.0,0.00033698,120]
[408641949,1774036287268,-816.89,0.00033698,120]
[408641950,1774036287279,-500.0,0.00033698,120]
[408641951,1774036287290,-3098.0,0.00033698,120]
[408641952,1774036287300,-1052.59,0.00033698,120]
[408641953,1774036287310,-4592.52,0.00033698,120]
[408641954,1774036287320,-587.08,0.00033698,120]
[408641955,1774036287330,-3548.68,0.00033698,120]
[408641956,1774036287340,-1044.81,0.00033698,14]
[408641957,1774036287349,-926.21,0.00033698,120]
[408641958,1774036287359,-732.11,0.00033698,120]
[408641959,1774036287368,-824.15,0.00033698,120]
[408641960,1774036287378,-716.03,0.00033698,120]
[408641961,1774036287388,-500.0,0.00033698,120]
[408641962,1774036287397,-729.27,0.00033698,120]
[408641963,1774036287407,-500.0,0.00033698,2]
[408641964,1774036287417,-500.0,0.00033698,120]
[408641965,1774036287428,-919.19,0.00033698,60]
[408641966,1774036287438,-5739.37,0.00033698,7]
[408641967,1774036287448,-500.0,0.00033698,120]
[408641968,1774036287458,-429.67370831,0.00033698,2]
[408641969,1774036287467,-1366.47,0.00033698,14]
[408641970,1774036287477,-685.6,0.00033698,14]
[408641971,1774036287488,-300.0,0.00033698,2]
[408641972,1774036287498,-875.21,0.00033698,2]
[408641973,1774036287508,-536.33,0.00033698,120]
[408641974,1774036287520,-966.16,0.00033698,120]
[408641975,1774036287530,-1260.41,0.00033698,2]
[408641976,1774036287540,-1443.59,0.00033698,7]
[408641977,1774036287550,-500.0,0.00033698,5]
[408641978,1774036287560,-2059.09,0.00033698,120]
[408641979,1774036287569,-1117.66,0.00033698,120]
[408641980,1774036287579,-8442.63,0.00033698,60]
[408641981,1774036287589,-3352.31,0.00033698,120]
[408641982,1774036287598,-547.44,0.00033698,30]
[408641983,1774036287608,-2137.61,0.00033698,120]
[408641984,1774036287617,-2648.26,0.00033698,120]
[408641985,1774036287627,-15731.63,0.00033698,120]
[408641986,1774036287636,-500.0,0.00033698,2]
[408641987,1774036287646,-1772.79,0.00033698,120]
[408641988,1774036287655,-2157.0,0.00033698,2]
[408641989,1774036287665,-575.18,0.00033698,120]
[408641990,1774036287675,-1441.92,0.00033698,120]
[408641991,1774036287685,-620.5,0.00033698,2]
[408641992,1774036287694,-810.21,0.00033698,2]
[408641993,1774036287704,-1141.42,0.00033698,7]
[408641994,1774036287714,-3708.46,0.00033698,2]
[408641995,1774036287723,-600.0,0.00033699,5]
[408641996,1774036287733,-800.0,0.00033714,21]
[408641997,1774036287890,-500.0,0.00033714,21]
[408641998,1774036287901,-1001.38,0.0003375,120]
[408641999,1774036287913,-273.19,0.00033803,120]
[408642000,1774036287923,-503.0,0.00033823,19]
[408642001,1774036287933,-155.42931,0.00033888,7]
[408642002,1774036287942,-191.15618403,0.000339,120]
[408642003,1774036287952,-1001.38,0.00033958,120]
[408642004,1774036287962,-959.05495093,0.00033971,60]
[408642005,1774036287972,-959.05495092,0.00033971,60]
[408642006,1774036287982,-852.59,0.00033972,120]
[408642007,1774036287992,-500.0,0.00033972,2]
[408642008,1774036288002,-915.83,0.00033972,120]
[408642009,1774036288011,-2459.36,0.00033972,2]
[408642010,1774036288023,-752.86,0.00033972,2]
[408642011,1774036288033,-209.66796118,0.00033972,120]
[408642012,1774036288043,-816.89,0.00033972,120]
[408642013,1774036288053,-500.0,0.00033972,120]
[408642014,1774036288064,-3098.0,0.00033972,120]
[408642015,1774036288074,-1052.59,0.00033972,120]
[408642016,1774036288084,-4592.52,0.00033972,120]
[408642017,1774036288095,-587.08,0.00033972,120]
[408642018,1774036288105,-3548.68,0.00033972,120]
[408642019,1774036288115,-1044.81,0.00033972,14]
[408642020,1774036288126,-926.21,0.00033972,120]
[408642021,1774036288135,-732.11,0.00033972,120]
[408642022,1774036288145,-824.15,0.00033972,120]
[408642023,1774036288155,-716.03,0.00033972,120]
[408642024,1774036288164,-500.0,0.00033972,120]
[408642025,1774036288173,-729.27,0.00033972,120]
[408642026,1774036288182,-500.0,0.00033972,2]
[408642027,1774036288191,-500.0,0.00033972,120]
[408642028,1774036288202,-919.19,0.00033972,60]
[408642029,1774036288212,-5739.37,0.00033972,7]
[408642030,1774036288222,-500.0,0.00033972,120]
[408642031,1774036288231,-1366.47,0.00033972,14]
[408642032,1774036288241,-685.6,0.00033972,14]